fUST/lending_fUST_20260306
["ID","MTS","AMOUNT","RATE_DAILY","PERIOD"]
[407748270,1772743832384,-3165.78623235,3.653e-05,2]
[407748313,1772743838395,-23723.87780174,3.653e-05,2]
[407748332,1772743843583,-658.5950081,3.653e-05,2]
[407748333,1772743843595,-49451.13363233,3.653e-05,2]
[407748334,1772743843645,-1041.66666667,3.653e-05,2]
[407748339,1772743846354,-3569.27486141,3.653e-05,2]
[407748340,1772743846408,-4908.1556717,3.653e-05,2]
[407748341,1772743846549,-7036.90199311,3.653e-05,2]
[407748355,1772744884318,174.49,3.8e-06,2]
[407748356,1772744884622,174.48,3.8e-06,2]
[407748380,1772745031939,-4093.07329377,3.067e-05,2]
[407748382,1772745031949,-1620.806816,3.167e-05,2]
[407748384,1772745031959,-258.19885219,3.234e-05,2]
[407748385,1772745031969,-1078.92103804,3.3e-05,2]
[407748389,1772745031999,-541.88577796,3.3e-05,2]
[407748390,1772745032008,-1200.0,3.385e-05,2]
[407748392,1772745032018,-1000.0,3.386e-05,3]
[407748394,1772745032028,-300.0,3.398e-05,2]
[407748396,1772745032038,-300.0,3.398e-05,2]
[407748397,1772745032048,-300.0,3.399e-05,2]
[407748399,1772745032058,-4407.86199173,3.4e-05,2]
[407748401,1772745032068,-8718.73928713,3.4e-05,2]
[407748403,1772745032078,-1666.36657203,3.4e-05,2]
[407748449,1772745037747,-8072.56093729,3.4e-05,2]
[407748450,1772745037757,-10759.11573159,3.4e-05,2]
[407748451,1772745037766,-187.99207912,3.4e-05,2]
[407748452,1772745037776,-196.83759333,3.4e-05,2]
[407748453,1772745037785,-164.83821965,3.4e-05,2]
[407748454,1772745037795,-193.09426027,3.4e-05,2]
[407748455,1772745037804,-1620.806816,3.434e-05,2]
[407748456,1772745037813,-1620.806816,3.567e-05,2]
[407748457,1772745037822,-200.0,3.653e-05,2]
[407748458,1772745037832,-200.0,3.653e-05,2]
[407748459,1772745037840,-200.0,3.653e-05,2]
[407748460,1772745037850,-200.0,3.653e-05,2]
[407748461,1772745037859,-200.0,3.653e-05,2]
[407748462,1772745037869,-200.0,3.653e-05,2]
[407748463,1772745037878,-200.0,3.653e-05,2]
[407748464,1772745037888,-200.0,3.653e-05,2]
[407748465,1772745037898,-1620.806816,3.7e-05,2]
[407748466,1772745037909,-1680.0,3.724e-05,2]
[407748467,1772745037918,-1620.806816,3.834e-05,2]
[407748468,1772745037927,-250.0,3.949e-05,2]
[407748469,1772745037936,-764.0,4.096e-05,2]
[407748470,1772745038206,-203.0611873,4.1e-05,2]
[407748471,1772745038242,-3540.23055459,4.21e-05,2]
[407748472,1772745038257,-600.0,4.235e-05,2]
[407748473,1772745038266,-5148.91,4.55e-05,2]
[407748474,1772745038276,-720.0,4.658e-05,2]
[407748475,1772745038286,-2237.879,4.81e-05,2]
[407748476,1772745038295,-1390.0,4.81e-05,2]
[407748477,1772745038304,-433.0,4.81e-05,2]
[407748478,1772745038314,-433.0,4.81e-05,2]
[407748479,1772745038323,-731.0,4.81e-05,2]
[407748480,1772745038332,-153.24,5e-05,2]
[407748481,1772745038342,-202.58,5e-05,2]
[407748482,1772745038351,-152.07,5e-05,2]
[407748483,1772745038360,-500.0,5e-05,2]
[407748484,1772745038370,-500.0,5e-05,2]
[407748485,1772745038379,-500.0,5e-05,2]
[407748486,1772745038389,-503.51765951,5e-05,2]
[407748487,1772745038400,-500.0,5e-05,2]
[407748488,1772745038409,-500.0,5e-05,2]
[407748489,1772745038419,-500.0,5e-05,2]
[407748490,1772745038428,-500.0,5e-05,2]
[407748491,1772745038438,-500.0,5e-05,2]
[407748492,1772745038447,-500.0,5e-05,2]
[407748493,1772745038457,-500.0,5e-05,2]
[407748494,1772745038467,-500.0,5e-05,2]
[407748495,1772745038476,-500.0,5e-05,2]
[407748496,1772745038486,-500.0,5e-05,2]
[407748497,1772745038495,-500.0,5e-05,2]
[407748498,1772745038504,-500.0,5e-05,2]
[407748499,1772745038514,-500.0,5e-05,2]
[407748500,1772745038523,-500.0,5e-05,2]
[407748501,1772745038532,-500.0,5e-05,2]
[407748502,1772745038542,-500.0,5e-05,2]
[407748503,1772745038551,-500.0,5e-05,2]
[407748504,1772745038560,-500.0,5e-05,2]
[407748505,1772745038569,-164.80427664,5e-05,2]
[407748506,1772745038578,-500.0,5e-05,2]
[407748507,1772745038587,-500.0,5e-05,2]
[407748508,1772745038596,-500.0,5e-05,2]
[407748509,1772745038605,-500.0,5e-05,2]
[407748510,1772745038615,-500.0,5e-05,2]
[407748511,1772745038624,-500.0,5e-05,2]
[407748512,1772745038632,-500.0,5e-05,2]
[407748513,1772745038641,-500.0,5e-05,2]
[407748514,1772745038650,-500.0,5e-05,2]
[407748515,1772745038659,-500.0,5e-05,2]
[407748516,1772745038668,-500.0,5e-05,2]
[407748517,1772745038677,-500.0,5e-05,2]
[407748518,1772745038686,-500.0,5e-05,2]
[407748519,1772745038695,-500.0,5e-05,2]
[407748520,1772745038705,-500.0,5e-05,2]
[407748521,1772745038715,-500.0,5e-05,2]
[407748522,1772745038724,-500.0,5e-05,2]
[407748523,1772745038733,-500.0,5e-05,2]
[407748524,1772745038743,-500.0,5e-05,2]
[407748525,1772745038752,-500.0,5e-05,2]
[407748526,1772745038761,-500.0,5e-05,2]
[407748527,1772745038771,-500.0,5e-05,2]
[407748528,1772745038780,-500.0,5e-05,2]
[407748529,1772745038790,-500.0,5e-05,2]
[407748530,1772745038799,-500.0,5e-05,2]
[407748531,1772745038809,-500.0,5e-05,2]
[407748532,1772745038818,-500.0,5e-05,2]
[407748533,1772745038827,-500.0,5e-05,2]
[407748534,1772745038836,-500.0,5e-05,2]
[407748535,1772745038845,-500.0,5e-05,2]
[407748536,1772745038854,-500.0,5e-05,2]
[407748537,1772745038864,-500.0,5e-05,2]
[407748538,1772745038873,-500.0,5e-05,2]
[407748539,1772745038882,-500.0,5e-05,2]
[407748540,1772745038892,-500.0,5e-05,2]
[407748541,1772745038902,-500.0,5e-05,2]
[407748542,1772745038913,-500.0,5e-05,2]
[407748543,1772745038923,-500.0,5e-05,2]
[407748544,1772745038932,-500.0,5e-05,2]
[407748545,1772745038941,-500.0,5e-05,2]
[407748546,1772745038952,-500.0,5e-05,2]
[407748547,1772745038962,-500.0,5e-05,2]
[407748548,1772745038972,-500.0,5e-05,2]
[407748549,1772745038983,-500.0,5e-05,2]
[407748550,1772745038992,-500.0,5e-05,2]
[407748551,1772745039001,-500.0,5e-05,2]
[407748552,1772745039011,-500.0,5e-05,2]
[407748553,1772745039020,-500.0,5e-05,2]
[407748554,1772745039029,-500.0,5e-05,2]
[407748555,1772745039039,-500.0,5e-05,2]
[407748556,1772745039048,-500.0,5e-05,2]
[407748557,1772745039057,-500.0,5e-05,2]
[407748558,1772745039066,-500.0,5e-05,2]
[407748559,1772745039075,-500.0,5e-05,2]
[407748560,1772745039085,-500.0,5e-05,2]
[407748561,1772745039095,-500.0,5e-05,2]
[407748562,1772745039104,-500.0,5e-05,2]
[407748563,1772745039113,-500.0,5e-05,2]
[407748564,1772745039122,-500.0,5e-05,2]
[407748565,1772745039132,-500.0,5e-05,2]
[407748566,1772745039141,-500.0,5e-05,2]
[407748567,1772745039150,-500.0,5e-05,2]
[407748568,1772745039160,-500.0,5e-05,2]
[407748569,1772745039169,-500.0,5e-05,2]
[407748570,1772745039179,-500.0,5e-05,2]
[407748571,1772745039188,-500.0,5e-05,2]
[407748572,1772745039197,-500.0,5e-05,2]
[407748573,1772745039207,-500.0,5e-05,2]
[407748574,1772745039217,-500.0,5e-05,2]
[407748575,1772745039226,-500.0,5e-05,2]
[407748576,1772745039237,-500.0,5e-05,2]
[407748577,1772745039247,-500.0,5e-05,2]
[407748578,1772745039256,-500.0,5e-05,2]
[407748579,1772745039266,-500.0,5e-05,2]
[407748580,1772745039275,-500.0,5e-05,2]
[407748581,1772745039285,-500.0,5e-05,2]
[407748582,1772745039295,-500.0,5e-05,2]
[407748583,1772745039305,-500.0,5e-05,2]
[407748584,1772745039315,-500.0,5e-05,2]
[407748585,1772745039325,-500.0,5e-05,2]
[407748586,1772745039335,-500.0,5e-05,2]
[407748587,1772745039345,-565.72172156,5e-05,2]
[407748588,1772745039355,-500.0,5e-05,2]
[407748589,1772745039365,-500.0,5e-05,2]
[407748590,1772745039374,-500.0,5e-05,2]
[407748591,1772745039383,-500.0,5e-05,2]
[407748592,1772745039394,-500.0,5e-05,2]
[407748593,1772745039403,-500.0,5e-05,2]
[407748594,1772745039412,-500.0,5e-05,2]
[407748595,1772745039422,-500.0,5e-05,2]
[407748596,1772745039431,-500.0,5e-05,2]
[407748597,1772745039440,-500.0,5e-05,2]
[407748598,1772745039450,-500.0,5e-05,2]
[407748599,1772745039459,-350.0,5e-05,2]
[407748600,1772745039468,-500.0,5e-05,2]
[407748601,1772745039477,-500.0,5e-05,2]
[407748602,1772745039486,-500.0,5e-05,2]
[407748603,1772745039496,-500.0,5e-05,2]
[407748604,1772745039505,-500.0,5e-05,2]
[407748605,1772745039515,-500.0,5e-05,2]
[407748606,1772745039524,-500.0,5e-05,2]
[407748607,1772745039533,-500.0,5e-05,2]
[407748608,1772745039543,-500.0,5e-05,2]
[407748609,1772745039552,-500.0,5e-05,2]
[407748610,1772745039561,-500.0,5e-05,2]
[407748611,1772745039570,-500.0,5e-05,2]
[407748612,1772745039580,-500.0,5e-05,2]
[407748613,1772745039590,-500.0,5e-05,2]
[407748614,1772745039601,-550.0,5e-05,2]
[407748615,1772745039611,-500.0,5e-05,2]
[407748616,1772745039620,-500.0,5e-05,2]
[407748617,1772745039629,-500.0,5e-05,2]
[407748618,1772745039638,-500.0,5e-05,2]
[407748619,1772745039647,-500.0,5e-05,2]
[407748620,1772745039656,-500.0,5e-05,2]
[407748621,1772745039666,-373.1869409,5e-05,2]
[407748622,1772745039676,-500.0,5e-05,2]
[407748623,1772745039685,-500.0,5e-05,2]
[407748624,1772745039694,-500.0,5e-05,2]
[407748625,1772745039704,-500.0,5e-05,2]
[407748626,1772745039714,-500.0,5e-05,2]
[407748627,1772745039723,-500.0,5e-05,2]
[407748628,1772745039732,-500.0,5e-05,2]
[407748629,1772745039742,-500.0,5e-05,2]
[407748630,1772745039752,-500.0,5e-05,2]
[407748631,1772745039762,-500.0,5e-05,2]
[407748632,1772745039772,-500.0,5e-05,2]
[407748633,1772745039783,-500.0,5e-05,2]
[407748634,1772745039793,-500.0,5e-05,2]
[407748635,1772745039803,-500.0,5e-05,2]
[407748636,1772745039812,-500.0,5e-05,2]
[407748637,1772745039821,-500.0,5e-05,2]
[407748638,1772745039831,-500.0,5e-05,2]
[407748639,1772745039840,-500.0,5e-05,2]
[407748640,1772745039849,-500.0,5e-05,2]
[407748641,1772745039859,-500.0,5e-05,2]
[407748642,1772745039868,-494.94943502,5e-05,2]
[407748643,1772745039880,-500.0,5e-05,2]
[407748644,1772745039890,-500.0,5e-05,2]
[407748645,1772745039902,-500.0,5e-05,2]
[407748646,1772745039914,-500.0,5e-05,2]
[407748647,1772745039923,-159.77,5e-05,2]
[407748648,1772745039934,-716.49350432,5e-05,2]
[407748649,1772745039946,-716.49350429,5e-05,2]
[407748650,1772745039956,-814.31,5.078e-05,2]
[407748651,1772745039967,-864.0,5.124e-05,2]
[407748652,1772745039978,-300.0879473,5.178e-05,2]
[407748653,1772745039987,-1957.856,5.178e-05,2]
[407748654,1772745039998,-500.0,5.178e-05,2]
[407748655,1772745040009,-500.0,5.178e-05,2]
[407748656,1772745040019,-500.0,5.178e-05,2]
[407748657,1772745040028,-500.0,5.178e-05,2]
[407748658,1772745040036,-500.0,5.178e-05,2]
[407748659,1772745040045,-500.0,5.178e-05,2]
[407748660,1772745040055,-500.0,5.178e-05,2]
[407748661,1772745040064,-500.0,5.178e-05,2]
[407748662,1772745040075,-162.380719,5.178e-05,2]
[407748663,1772745040085,-500.0,5.178e-05,2]
[407748664,1772745040094,-500.0,5.178e-05,2]
[407748665,1772745040104,-161.29914029,5.178e-05,2]
[407748666,1772745040113,-168.3888056,5.178e-05,2]
[407748667,1772745040122,-500.0,5.178e-05,2]
[407748669,1772745040132,-174.61919141,5.178e-05,2]
[407748671,1772745040141,-500.0,5.178e-05,2]
[407748673,1772745040150,-181.08010149,5.178e-05,2]
[407748675,1772745040160,-500.0,5.178e-05,2]
[407748677,1772745040170,-187.78006525,5.178e-05,2]
[407748679,1772745040178,-500.0,5.178e-05,2]
[407748681,1772745040187,-194.72792766,5.178e-05,2]
[407748683,1772745040196,-557.5788265,5.178e-05,2]
[407748685,1772745040205,-500.0,5.178e-05,2]
[407748687,1772745040214,-201.93286099,5.178e-05,2]
[407748689,1772745040224,-500.0,5.178e-05,2]
[407748690,1772745040233,-209.40437684,5.178e-05,2]
[407748691,1772745040243,-500.0,5.178e-05,2]
[407748692,1772745040252,-217.15233878,5.178e-05,2]
[407748693,1772745040261,-168.3888056,5.178e-05,2]
[407748694,1772745040270,-500.0,5.178e-05,2]
[407748695,1772745040280,-500.0,5.178e-05,2]
[407748696,1772745040290,-225.18697532,5.178e-05,2]
[407748697,1772745040300,-257.72788824,5.178e-05,2]
[407748698,1772745040310,-500.0,5.178e-05,2]
[407748699,1772745040320,-2150.738,5.178e-05,2]
[407748700,1772745040329,-233.51889341,5.178e-05,2]
[407748701,1772745040339,-500.0,5.178e-05,2]
[407748702,1772745040348,-13.86602993,5.178e-05,2]
[407748703,1772745040363,-228.29306253,5.178e-05,2]
[407748704,1772745040372,-151.0,5.178e-05,2]
[407748705,1772745040381,-97.259384,5.178e-05,2]
[407748706,1772745040490,-402.740616,5.178e-05,2]
[407748707,1772745040499,-250.0,5.178e-05,2]
[407748708,1772745040508,-251.11897888,5.178e-05,2]
[407748709,1772745040518,-313.02465034,5.178e-05,2]
[407748710,1772745040529,-186.97534966,5.178e-05,2]
[407748711,1772745040539,-250.0,5.178e-05,2]
[407748712,1772745040548,-260.4103811,5.178e-05,2]
[407748713,1772745040557,-500.0,5.178e-05,2]
[407748714,1772745040566,-250.0,5.178e-05,2]
[407748715,1772745040575,-270.0455652,5.178e-05,2]
[407748716,1772745040584,-280.03725112,5.178e-05,2]
[407748717,1772745040594,-290.39862941,5.178e-05,2]
[407748718,1772745040603,-301.1433787,5.178e-05,2]
[407748719,1772745040612,-250.0,5.178e-05,2]
[407748720,1772745040621,-250.0,5.178e-05,2]
[407748721,1772745040630,-250.0,5.178e-05,2]
[407748722,1772745040639,-250.0,5.178e-05,2]
[407748723,1772745040648,-250.0,5.178e-05,2]
[407748724,1772745040658,-250.0,5.178e-05,2]
[407748725,1772745040667,-250.0,5.178e-05,2]
[407748726,1772745040677,-312.54556865,5.178e-05,2]
[407748727,1772745040686,-255.95645732,5.178e-05,2]
[407748728,1772745040695,-156.587,5.178e-05,2]
[407748729,1772745040705,-151.0,5.178e-05,2]
[407748730,1772745040715,-151.0,5.178e-05,2]
[407748731,1772745040725,-151.0,5.178e-05,2]
[407748732,1772745040734,-151.0,5.178e-05,2]
[407748733,1772745040744,-151.0,5.178e-05,2]
[407748734,1772745040754,-151.0,5.178e-05,2]
[407748735,1772745040763,-151.0,5.178e-05,2]
[407748736,1772745040775,-151.0,5.178e-05,2]
[407748737,1772745040784,-151.0,5.178e-05,2]
[407748738,1772745040793,-252.27773512,5.178e-05,2]
[407748739,1772745040802,-151.05222476,5.178e-05,2]
[407748740,1772745040811,-716.49350429,5.208e-05,2]
[407748741,1772745040820,-2030.296672,5.233e-05,2]
[407748742,1772745040830,-304.67464558,5.234e-05,2]
[407748743,1772745040839,-2105.41764886,5.288e-05,2]
[407748744,1772745040848,-2183.31810187,5.343e-05,2]
[407748745,1772745040857,-500.0,5.355e-05,2]
[407748746,1772745040866,-2264.10087164,5.398e-05,2]
[407748747,1772745040875,-1850.88607076,5.44e-05,2]
[407748748,1772745040887,-1061.69153269,5.44e-05,2]
[407748753,1772745042734,-418.93857618,5.44e-05,2]
[407748754,1772745045499,-8075.41882549,5.44e-05,2]
[407748755,1772745045509,-2347.87260389,5.453e-05,2]
[407748756,1772745045519,-500.0,5.479e-05,2]
[407748757,1772745045530,-351.43237516,5.479e-05,2]
[407748758,1772745045539,-179.347116,5.479e-05,2]
[407748759,1772745045548,-10000.0,5.479e-05,2]
[407748760,1772745045558,-152.07,5.5e-05,2]
[407748761,1772745045567,-248.88117479,5.508e-05,2]
[407748762,1772745045576,-1000.0,5.637e-05,2]
[407748763,1772745045586,-2230.315306,5.726e-05,2]
[407748764,1772745045596,-152.07,5.9e-05,2]
[407748765,1772745045605,-716.49350429,6.029e-05,2]
[407748766,1772745045614,-1000.0,6.2e-05,2]
[407748767,1772745045623,-244.0,6.2e-05,2]
[407748768,1772745045633,-787.0,6.2e-05,2]
[407748769,1772745045643,-2312.83697232,6.274e-05,2]
[407748770,1772745045652,-159.77,6.3e-05,2]
[407748771,1772745045662,-152.07,6.4e-05,2]
[407748772,1772745045673,-197.53950412,6.592e-05,2]
[407748773,1772745045683,-160.0,6.663e-05,2]
[407748774,1772745045692,-152.07,6.8e-05,2]
[407748775,1772745045702,-1000.0,6.82e-05,2]
[407748776,1772745045711,-492.0,6.82e-05,2]
[407748777,1772745045721,-2398.4119403,6.822e-05,2]
[407748778,1772745045731,-716.49350429,6.849e-05,2]
[407748779,1772745045741,-843.02393456,6.849e-05,3]
[407748780,1772745045751,-1411.51812446,6.849e-05,2]
[407748781,1772745045762,-793.97894501,6.849e-05,2]
[407748782,1772745045772,-441.09941389,6.849e-05,2]
[407748783,1772745045782,-761.71791355,6.849e-05,3]
[407748784,1772745045792,-2013.46303118,6.849e-05,2]
[407748785,1772745045801,-1288.61633996,6.849e-05,2]
[407748786,1772745045811,-724.84669123,6.849e-05,2]
[407748787,1772745045821,-402.69260624,6.849e-05,2]
[407748788,1772745045831,-1280.05615531,6.849e-05,3]
[407748789,1772745045842,-1683.91257688,6.849e-05,2]
[407748790,1772745045851,-947.2008245,6.849e-05,2]
[407748791,1772745045861,-526.22268028,6.849e-05,2]
[407748792,1772745045871,-912.39625531,6.849e-05,3]
[407748793,1772745045881,-230.68235812,6.849e-05,2]
[407748794,1772745045891,-1153.22337935,6.849e-05,2]
[407748795,1772745045902,-648.68815088,6.849e-05,2]
[407748796,1772745045912,-360.38230605,6.849e-05,2]
[407748797,1772745045924,-710.58915114,6.849e-05,3]
[407748798,1772745045934,-3359.70800603,6.849e-05,2]
[407748799,1772745045945,-2150.21312386,6.849e-05,2]
[407748800,1772745045954,-1209.49488217,6.849e-05,2]
[407748801,1772745045965,-671.94160121,6.849e-05,2]
[407748802,1772745045976,-2439.42999682,6.849e-05,3]
[407748803,1772745045985,-977.85982558,6.849e-05,2]
[407748804,1772745045996,-550.04615189,6.849e-05,2]
[407748805,1772745046005,-305.58119549,6.849e-05,2]
[407748806,1772745046015,-605.12071564,6.849e-05,3]
[407748807,1772745046025,-2260.30468046,6.849e-05,2]
[407748808,1772745046035,-1446.59499549,6.849e-05,2]
[407748809,1772745046045,-813.70968497,6.849e-05,2]
[407748810,1772745046055,-452.06093609,6.849e-05,2]
[407748811,1772745046066,-1641.17090818,6.849e-05,3]
[407748812,1772745046075,-7993.37398204,6.849e-05,2]
[407748813,1772745046084,-6315.75228211,6.849e-05,2]
[407748814,1772745046094,-4835.49784099,6.849e-05,2]
[407748815,1772745046103,-3552.61065869,6.849e-05,2]
[407748816,1772745046113,-2467.0907352,6.849e-05,2]
[407748817,1772745046122,-1578.93807053,6.849e-05,2]
[407748818,1772745046131,-888.15266467,6.849e-05,2]
[407748819,1772745046140,-493.41814704,6.849e-05,2]
[407748820,1772745046153,-5973.14563966,6.849e-05,3]
[407748821,1772745046164,-2654.73139541,6.849e-05,3]
[407748822,1772745046173,-663.019166,6.849e-05,3]
[407748823,1772745046183,-575.98559895,6.849e-05,2]
[407748824,1772745046194,-323.99189941,6.849e-05,2]
[407748825,1772745046203,-179.99549967,6.849e-05,2]
[407748826,1772745046213,-359.93951746,6.849e-05,3]
[407748827,1772745046223,-344.627287,6.849e-05,2]
[407748828,1772745046232,-191.26814429,6.849e-05,2]
[407748829,1772745046241,-1579.60931399,6.898e-05,2]
[407748830,1772745046251,-888.53023912,6.898e-05,2]
[407748831,1772745046261,-493.62791062,6.898e-05,2]
[407748832,1772745046270,-285.65643906,6.944e-05,3]
[407748833,1772745046279,-2330.16760718,6.973e-05,3]
[407748834,1772745046290,-237.8421052,6.992e-05,3]
[407748835,1772745046300,-174.55738581,7.186e-05,2]
[407748836,1772745046309,-314.20329447,7.186e-05,2]
[407748837,1772745046319,-558.58363461,7.186e-05,2]
[407748838,1772745046328,-406.94993441,7.186e-05,2]
[407748839,1772745046337,-465.08563932,7.186e-05,2]
[407748840,1772745046347,-469.41961641,7.186e-05,2]
[407748841,1772745046356,-844.95530955,7.186e-05,2]
[407748842,1772745046366,-1502.14277253,7.186e-05,2]
[407748843,1772745046375,-2347.09808207,7.186e-05,2]
[407748844,1772745046384,-3379.82123819,7.186e-05,2]
[407748845,1772745046394,-351.15043897,7.234e-05,2]
[407748846,1772745046403,-152.07,7.3e-05,2]
[407748847,1772745046413,-2487.15318209,7.37e-05,2]
[407748848,1772745046422,-722.82566815,7.39e-05,2]
[407748849,1772745046435,-2900.26948078,7.39e-05,2]
[407748850,1772745046446,-8771.36177123,7.39e-05,2]
[407748851,1772745046456,-159.77,7.5e-05,2]
[407748852,1772745046465,-3979.02444113,7.5e-05,2]
[407749249,1772746237779,-948.56039677,4.706e-05,2]
[407749250,1772746237790,-499.06402556,4.754e-05,2]
[407749251,1772746237802,-451.53473271,4.754e-05,2]
[407749252,1772746237812,-249.88519348,4.827e-05,2]
[407749253,1772746237823,-1000.0,4.857e-05,3]
[407749254,1772746237836,-3917.96975743,4.884e-05,2]
[407749522,1772746242876,-657.0571594,4.884e-05,2]
[407749523,1772746242932,-295.68339167,4.884e-05,2]
[407749524,1772746242942,-159.75,5e-05,2]
[407749525,1772746242951,-1200.0,5.087e-05,2]
[407749526,1772746242960,-300.0,5.088e-05,2]
[407749527,1772746242970,-300.0,5.088e-05,2]
[407749528,1772746242979,-1390.0,5.09e-05,2]
[407749529,1772746242988,-638.0,5.09e-05,2]
[407749530,1772746242997,-2188.0,5.09e-05,2]
[407749531,1772746243006,-731.0,5.09e-05,2]
[407749533,1772746243016,-433.0,5.09e-05,2]
[407749535,1772746243025,-433.0,5.09e-05,2]
[407749537,1772746243033,-155.0,5.335e-05,2]
[407749539,1772746243042,-155.0,5.335e-05,2]
[407749541,1772746243051,-155.0,5.335e-05,2]
[407749542,1772746243060,-155.0,5.335e-05,2]
[407749543,1772746243069,-155.0,5.335e-05,2]
[407749544,1772746243078,-293.03909323,5.335e-05,2]
[407749545,1772746243087,-161.206812,6.556e-05,2]
[407749546,1772746243096,-160.0,6.636e-05,2]
[407749547,1772746243105,-1670.09073511,6.8e-05,2]
[407749548,1772746243114,-3683.50753583,6.8e-05,2]
[407749549,1772746243123,-2965.37265085,6.8e-05,2]
[407749790,1772746245674,-1479.75857806,6.8e-05,2]
[407749791,1772746245684,-2019.3167489,6.8e-05,2]
[407749792,1772746245695,-2045.00263343,6.8e-05,2]
[407749793,1772746245704,-3482.62702293,6.8e-05,2]
[407749794,1772746245786,-617.32943517,6.8e-05,2]
[407749795,1772746245795,-302.50189815,6.82e-05,2]
[407749796,1772746245805,-208.13188232,6.82e-05,2]
[407749797,1772746245814,-172.94935945,6.82e-05,2]
[407749810,1772746262399,-300.0,6.819e-05,2]
[407749811,1772746262430,-327.05064055,6.82e-05,2]
[407749812,1772746262459,-398.21058892,6.82e-05,2]
[407749813,1772746291760,-892.33091763,5.287e-05,2]
[407749878,1772747431822,-1298.42025008,4.687e-05,2]
[407749880,1772747431832,-201.78871479,4.711e-05,2]
[407749883,1772747431843,-52.99705844,4.711e-05,2]
[407749885,1772747431853,-814.53724914,4.734e-05,2]
[407749887,1772747431863,-95.64444833,5.234e-05,3]
[407749890,1772747431880,-361.63977585,5.234e-05,3]
[407750001,1772747437933,-542.71577582,5.234e-05,3]
[407750002,1772747437943,-633.02191813,5.286e-05,2]
[407750003,1772747437993,-566.97808187,5.286e-05,2]
[407750004,1772747438003,-222.31793655,5.287e-05,2]
[407750006,1772747438014,-349.93925042,5.287e-05,2]
[407750024,1772747445382,-817.74281303,5.287e-05,2]
[407750025,1772747445391,-296.40756008,5.287e-05,2]
[407750027,1772747445994,-1891.59243992,5.287e-05,2]
[407750028,1772747446004,-155.07,5.287e-05,2]
[407750030,1772747446013,-1252.7153669,5.479e-05,2]
[407750031,1772747446024,-1863.03158687,5.479e-05,2]
[407750032,1772747446035,-4488.94831931,5.479e-05,2]
[407750044,1772747745428,663.490866,3e-05,10]
[407750074,1772748632132,-300.0,5.286e-05,2]
[407750075,1772748632142,-66.82802324,5.286e-05,2]
[407750082,1772748638043,-1133.17197676,5.286e-05,2]
[407750083,1772748638054,-259.53197572,5.286e-05,2]
[407750084,1772748638065,-100.39164782,5.287e-05,2]
[407750089,1772748640505,-591.51813598,5.287e-05,2]
[407750090,1772748640517,-1201.41860945,5.287e-05,2]
[407750091,1772748640530,-294.67160675,5.287e-05,2]
[407750092,1772748640540,-638.0,5.287e-05,2]
[407750093,1772748640549,-1162.919,5.287e-05,2]
[407750094,1772748640559,-433.0,5.287e-05,2]
[407750095,1772748640571,-433.0,5.287e-05,2]
[407750096,1772748640580,-147.68584157,5.287e-05,2]
[407750105,1772748643548,-583.31415843,5.287e-05,2]
[407750106,1772748643559,-223.67711711,5.3e-05,2]
[407750107,1772748643572,-3252.68527117,5.3e-05,2]
[407750108,1772748643582,-247.31472883,5.479e-05,2]
[407750109,1772748643595,-2147.98999809,5.479e-05,2]
[407750110,1772748643605,-161.86716561,5.563e-05,2]
[407750111,1772748643615,-10158.04367758,5.818e-05,2]
[407750112,1772748643627,-7645.80169832,5.818e-05,2]
[407750113,1772748643669,-5098.51023176,5.818e-05,2]
[407750114,1772748643680,-37736.31789411,5.818e-05,2]
[407750143,1772748646093,-253.7425319,5.818e-05,2]
[407750146,1772748646105,-10100.0,5.818e-05,2]
[407750151,1772748646152,-14735.0,5.818e-05,2]
[407750153,1772748646163,-7727.55368979,5.818e-05,2]
[407750155,1772748646174,-2088.0,5.818e-05,2]